[Event "44th Chess Olympiad Women 2022"]
[Site "Chennai"]
[Date "2022.08.03"]
[Round "6.21"]
[White "Cassi, Elisa"]
[Black "Avelino, Camila Biscaya"]
[Result "1-0"]
[ECO "C47"]
[WhiteElo "1922"]
[BlackElo "1863"]
[Annotator "TA"]
[PlyCount "67"]
[EventDate "2022.07.29"]
[EventType "team-tourn"]
[EventCountry "IND"]
[SourceTitle "playchess.com"]
[Source "ChessBase"]
[SourceQuality "1"]
[WhiteTeam "Italy"]
[BlackTeam "Portugal"]
[WhiteTeamCountry "ITA"]
[BlackTeamCountry "POR"]
[TimeControl "40/5400+30:1800+30"]

{[%evp 9,66,-6,7,0,7,0,0,3,26,33,50,37,111,114,144,144,327,195,191,178,279,269,245,256,564,542,583,556,558,577,792,791,738,756,762,377,755,387,393,394,635,635,631,529,29985,29986,29986,29987,29991,29992,29994,29995,29995,29995,29995,29996,29998,29999,29999]} 1. e4 {[%emt 0:00:03]} e5 {[%emt 0:00:36]} 2. Nf3 {[%emt 0:00:05]} Nc6 {[%emt 0:00:47]} 3. Nc3 {[%emt 0:00:08]} Nf6 {[%emt 0:00:49]} 4. h3 {[%emt 0:00:04]} h6 {[%emt 0:04:20]} 5. d4 {[%emt 0:01:06]} exd4 {[%emt 0:00:43]} 6. Nxd4 {[%emt 0:00:06] C47: Scotch Four Knights and Four Knights with 4 g3.} Bb4 {[%emt 0:01:36]} 7. Nxc6 $1 {[%emt 0:00:19]} bxc6 {[%emt 0:00:25]} 8. Bd3 {[%emt 0:00:59] The position is equal.} d5 {[%emt 0:01:43] [#]} 9. e5 $146 {[%emt 0:00:16]} ({Predecessor:} 9. exd5 cxd5 10. O-O O-O 11. Qf3 c6 12. Re1 Bd6 13. Bf4 Rb8 14. b3 Rb4 15. Bxd6 Qxd6 {1-0 (53) Beerdsen,T (2458)-Vrolijk,L (2419) Chess.com INT 2017}) 9... Nd7 {[%emt 0:27:27]} 10. Qg4 {[%emt 0:18:50][%csl LRb4,LRg7]} Bxc3+ {[%emt 0:04:49]} (10... Qe7 $14) 11. bxc3 $16 {[%emt 0:03:46]} Qe7 {[%emt 0:02:20]} 12. O-O $1 {[%emt 0:02:32] White is much more active. The black rooks are badly placed.} (12. Qxg7 $6 Qxe5+ 13. Qxe5+ Nxe5 $14) 12... Qxe5 $2 {[%emt 0:05:14]} (12... g5 $16) 13. Ba3 {[%emt 0:08:50]} (13. Bf4 $142 Qf6 14. Rfe1+ (14. Bxc7 O-O $14) 14... Kf8 15. Bxc7 (15. Qe2 g6 $16)) 13... Nb6 $18 {[%emt 0:06:06] [#]} 14. Qb4 $36 {[%emt 0:14:38][%mdl 3072] Threatening mate with Rae1. White has strong compensation. White is in control.} Qd6 {[%emt 0:02:39]} (14... Kd8 $142 15. Rfe1 Qf6) 15. Rae1+ {[%emt 0:04:16]} (15. Qxd6 cxd6 16. Bxd6 Be6 $16) 15... Be6 {[%emt 0:04:18] [#]} 16. Qa5 {[%emt 0:05:46]} (16. Qxd6 cxd6 17. Bxd6 Kd7 $14) 16... Qd8 {[%emt 0:00:41]} (16... Qf4 17. c4 (17. Qc5 Qd6 $16) 17... Kd8 18. cxd5 cxd5) 17. f4 {[%emt 0:00:45] Threatens to win with f5.} g6 {[%emt 0:01:04]} 18. f5 {[%emt 0:06:12]} gxf5 {[%emt 0:02:14]} 19. Bxf5 {[%emt 0:00:15] Black must now prevent Qc5. This bishop pair is nice.} Kd7 {[%emt 0:14:56]} 20. Bxe6+ {[%emt 0:08:19]} fxe6 {[%emt 0:00:10]} 21. Rf7+ {[%emt 0:00:19]} Kc8 {[%emt 0:00:12]} 22. Qa6+ {[%emt 0:02:11]} Kb8 {[%emt 0:00:15]} 23. Rxe6 {[%emt 0:00:12][%cal Oa3d6] Strongly threatening Bd6!} Qc8 {[%emt 0:05:45]} 24. Qe2 {[%emt 0:02:08]} ({Weaker is} 24. Qxc8+ Rxc8 25. Rxc6 (25. Rxh6 Kb7 $18) 25... Nc4 $18) 24... Kb7 $2 {[%emt 0:01:58]} (24... Rd8 25. Rxc6 Rd7) 25. Bd6 {[%emt 0:01:19] White threatens Ree7 and mate.} Nd7 {[%emt 0:02:53]} 26. Ree7 {[%emt 0:03:40][%cal Be6e7,Be7d7,Bd7d6][%mdl 32]} cxd6 {[%emt 0:01:55]} 27. Rxd7+ {[%emt 0:00:07] White mates.} Kb6 {[%emt 0:00:22]} 28. Qe3+ {[%emt 0:01:40]} c5 {[%emt 0:00:55]} 29. Rxd6+ {[%emt 0:00:25]} Ka5 {[%emt 0:01:52]} 30. c4 {[%emt 0:01:23]} dxc4 {[%emt 0:00:52]} 31. Qa3+ {[%emt 0:00:34]} Kb5 {[%emt 0:00:08]} 32. Rf1 {[%emt 0:00:18][%cal Rf1b1]} c3 {[%emt 0:02:14]} 33. Rb1+ {[%emt 0:00:08]} Kc4 {[%emt 0:00:04]} 34. Qb3# {[%emt 0:00:02] Black did not feel at home in the position after the opening.  Weighted Error Value: White=0.25 (precise) /Black=0.55} 1-0

[Event "44th Chess Olympiad Women 2022"]
[Site "Chennai"]
[Date "2022.08.03"]
[Round "6.22"]
[White "Thorsteinsdottir, Hallgerdur"]
[Black "Mariroh, Fariha"]
[Result "0-1"]
[ECO "B52"]
[WhiteElo "1934"]
[BlackElo "1839"]
[Annotator "TA"]
[PlyCount "72"]
[EventDate "2022.07.29"]
[EventType "team-tourn"]
[EventCountry "IND"]
[SourceTitle "playchess.com"]
[Source "ChessBase"]
[SourceQuality "1"]
[WhiteTeam "Iceland"]
[BlackTeam "Indonesia"]
[WhiteTeamCountry "ISL"]
[BlackTeamCountry "INA"]
[TimeControl "40/5400+30:1800+30"]

{[%evp 16,72,12,12,12,0,0,0,15,-70,-54,-97,-88,-139,-134,-125,-132,-168,-187,-172,-189,-201,-202,-200,-185,-182,-198,-200,-185,-195,-183,-184,-150,-316,-112,-82,-80,-134,-138,-131,-133,-122,-131,-127,-127,-444,-53,-45,-39,-405,-404,-5314,-5312,-29993,-29994,-29997,-29998,-29998,-29999]} 1. e4 {[%emt 0:00:09]} c5 {[%emt 0:00:06]} 2. Nf3 {[%emt 0:00:09]} d6 {[%emt 0:00:06]} 3. Bb5+ {[%emt 0:00:18]} Bd7 {[%emt 0:00:07]} 4. Bxd7+ {[%emt 0:00:24]} Qxd7 {[%emt 0:00:06]} 5. c4 {[%emt 0:00:38]} Nf6 {[%emt 0:00:29]} 6. Nc3 {[%emt 0:00:34]} g6 {[%emt 0:00:28]} 7. O-O {[%emt 0:00:54]} Bg7 {[%emt 0:00:11]} 8. d4 {[%emt 0:00:54]} cxd4 {[%emt 0:00:16]} 9. Nxd4 {[%emt 0:01:05]} O-O {[%emt 0:00:14] B52: Sicilian: Moscow Variation with 3...Bd7.} 10. f3 {[%emt 0:00:48]} Rc8 {[%emt 0:00:19]} 11. b3 {[%emt 0:02:42]} d5 {[%emt 0:01:28] The position is equal.} 12. e5 {[%emt 0:14:50]} (12. exd5 $11 Nxd5 13. Nxd5) 12... Ne8 $15 {[%emt 0:00:21]} 13. Nxd5 {[%emt 0:03:16] Strongly threatening Ba3.} e6 {[%emt 0:06:11] [#]} 14. Nb4 $146 {[%emt 0:10:48]} ({White should try} 14. Nf4) ({Predecessor:} 14. Nc3 Bxe5 15. Bb2 Qxd4+ 16. Kh1 Qxd1 17. Raxd1 Nc6 18. Rd2 Rd8 19. Re2 Bg7 20. g3 {0-1 (41) Leiva Rodriguez,J (2405)-Golubev,M (2461) Chess.com INT 2021}) 14... Bxe5 {[%emt 0:05:12]} 15. Nbc2 {[%emt 0:00:55]} Rd8 $1 {[%emt 0:03:49] aiming for ...Nc6.} 16. Be3 {[%emt 0:01:38]} Nc6 {[%emt 0:02:04]} 17. Nxc6 {[%emt 0:13:22]} Qxc6 {[%emt 0:04:11]} 18. Qe2 {[%emt 0:01:04]} Bxa1 {[%emt 0:00:27]} 19. Rxa1 {[%emt 0:00:12]} Qd6 {[%emt 0:03:01]} 20. Bd4 {[%emt 0:00:53]} f6 {[%emt 0:00:56]} 21. f4 {[%emt 0:08:01]} Kf7 {[%emt 0:10:39]} 22. Re1 {[%emt 0:01:37]} Ng7 {[%emt 0:00:18]} 23. Qf3 {[%emt 0:06:28]} Nf5 {[%emt 0:10:16]} 24. Ba1 {[%emt 0:03:42]} (24. Qxb7+ $17 Qd7 25. Qxd7+ Rxd7 26. Bc3) 24... Qd3 $2 {[%emt 0:08:01]} (24... Qb6+ $19 {is more deadly.} 25. Kh1 Rf8) 25. Qxb7+ $17 {[%emt 0:01:02]} Ne7 {[%emt 0:00:16]} 26. Nd4 {[%emt 0:02:54] [#]} Rxd4 $1 {[%emt 0:05:03]} 27. Qxa8 {[%emt 0:02:24]} Qd2 {[%emt 0:00:11][%cal Rd2e1] Chess con chili.} 28. Rb1 {[%emt 0:11:22] [#]} Qe3+ $40 {[%emt 0:11:06][%mdl 128] Black is out for blood.} 29. Kh1 {[%emt 0:00:07]} Rxf4 {[%emt 0:02:32]} 30. h3 $2 {[%emt 0:02:41][%mdl 8192]} (30. Qd8 $17) 30... Qd3 $2 {[%emt 0:00:44]} (30... g5 $19 {And now ...g4 would win.} 31. Qb7 g4 32. hxg4 Qg3) 31. Rg1 $15 {[%emt 0:00:22]} g5 {[%emt 0:09:48] White must now prevent ...g4.} 32. Qxa7 $2 {[%emt 0:01:47][%mdl 8192] [#]} (32. Bb2 $1 $15) 32... g4 $1 $19 {[%emt 0:04:38]} 33. hxg4 {[%emt 0:00:51]} (33. g3 $142 Qf3+ 34. Kh2) 33... Qg3 {[%emt 0:06:20][%cal Rg3h4]} 34. Rb1 {[%emt 0:07:04]} Rxg4 {[%emt 0:00:28][%csl Gg4][%cal Rg3g2] Black mates.} 35. Qb7 {[%emt 0:00:37]} Rh4+ {[%emt 0:00:19]} 36. Kg1 {[%emt 0:00:10]} Qe3+ {[%emt 0:00:06] Weighted Error Value: White=1.19/Black=0.38} 0-1

[Event "44th Chess Olympiad Women 2022"]
[Site "Chennai"]
[Date "2022.08.03"]
[Round "6.33"]
[White "Thurner, Anya"]
[Black "Chong, Kai Ni Agnes"]
[Result "1/2-1/2"]
[ECO "B20"]
[WhiteElo "1619"]
[BlackElo "1909"]
[Annotator "TA"]
[PlyCount "123"]
[EventDate "2022.07.29"]
[EventType "team-tourn"]
[EventCountry "IND"]
[SourceTitle "playchess.com"]
[Source "ChessBase"]
[SourceQuality "1"]
[WhiteTeam "New Zealand"]
[BlackTeam "Malaysia"]
[WhiteTeamCountry "NZL"]
[BlackTeamCountry "MAS"]
[TimeControl "40/5400+30:1800+30"]

{[%evp 9,123,-9,-15,-14,-2,-40,-27,-28,-25,-33,27,-36,0,0,0,7,0,-27,-18,-55,-50,-64,-61,-89,-90,-69,-77,-121,-116,-123,-114,-116,-121,-146,-138,-183,-135,-134,-131,-131,-145,-131,-100,-122,-122,-131,-131,-420,-281,-264,-227,-189,-7,-15,-8,-15,0,0,0,0,0,0,0,-10,0,-25,-18,-29,-39,-39,0,0,0,0,0,-20,-25,-26,0,0,0,0,0,0,0,0,0,0,0,0,0,0,0,0,0,0,0,0,0,0,0,0,0,0,0,0,0,0,0,0,0,0,0,0,0,0]} 1. e4 {[%emt 0:00:01]} c5 {[%emt 0:00:07]} 2. b3 {[%emt 0:00:06]} g6 {[%emt 0:00:08]} 3. Bb2 {[%emt 0:00:05]} Nf6 {[%emt 0:00:09]} 4. e5 {[%emt 0:00:05]} Nd5 {[%emt 0:00:11]} 5. Nc3 {[%emt 0:00:10]} Nxc3 {[%emt 0:00:45]} 6. Bxc3 {[%emt 0:00:08] B20: Sicilian: Unusual White 2nd moves.} Bg7 {[%emt 0:00:12]} 7. f4 {[%emt 0:00:45]} O-O {[%emt 0:00:41]} 8. Nf3 {[%emt 0:00:28] Black has an edge.} Nc6 {[%emt 0:00:53]} 9. Bb5 {[%emt 0:01:54] [#]} d6 $146 {[%emt 0:04:09]} (9... Nb4 $15) ({Predecessor:} 9... Qc7 10. O-O a6 11. Bxc6 Qxc6 12. a4 b6 13. Qe2 Bb7 14. Rae1 b5 15. axb5 axb5 {0-1 (47) Barthel,A (2194)-Shengelia,D (2572) Vienna 2016}) 10. O-O {[%emt 0:05:22]} ({White should try} 10. Bxc6 $11 bxc6 11. O-O) 10... Bd7 {[%emt 0:02:22][%cal Oc6e5]} 11. exd6 {[%emt 0:06:03]} exd6 {[%emt 0:00:14][%cal Be7d6,Bd6d5,Bd5d4,Bd4e3][%mdl 32]} 12. Bxg7 {[%emt 0:01:06]} Kxg7 {[%emt 0:00:07]} 13. Kh1 {[%emt 0:01:21]} Qf6 {[%emt 0:02:58]} 14. Ng5 {[%emt 0:17:33]} d5 {[%emt 0:05:02]} 15. Bxc6 {[%emt 0:03:39]} Bxc6 {[%emt 0:00:19]} 16. d3 {[%emt 0:01:40]} h6 {[%emt 0:03:35]} 17. Nh3 {[%emt 0:04:46][%cal Of4f5]} d4 {[%emt 0:06:23]} 18. Qg4 {[%emt 0:10:07]} Rae8 {[%emt 0:12:59]} 19. Rae1 {[%emt 0:02:29] [#]} Re3 $1 {[%emt 0:03:45]} 20. Rxe3 {[%emt 0:09:12]} dxe3 {[%emt 0:00:07]} 21. Qe2 {[%emt 0:02:19]} Re8 {[%emt 0:01:05]} 22. a4 {[%emt 0:10:37]} a6 {[%emt 0:05:48]} (22... Qh4 $19 {White must now prevent ...Qxh3.} 23. Ng1 Kg8) 23. Ng1 $17 {[%emt 0:06:22]} b5 {[%emt 0:14:59]} 24. axb5 {[%emt 0:02:00]} axb5 {[%emt 0:00:12]} 25. h3 {[%emt 0:03:30]} Bd7 {[%emt 0:12:43]} 26. Kh2 {[%emt 0:02:59]} h5 {[%emt 0:01:35]} 27. Rf3 {[%emt 0:06:52]} b4 {[%emt 0:04:48]} 28. g3 $2 {[%emt 0:01:34][%mdl 8192]} (28. Qe1 $17 {might work better.}) 28... Qd4 {[%emt 0:01:24]} 29. Rf1 {[%emt 0:00:48]} Qb2 {[%emt 0:04:15]} 30. Nf3 {[%emt 0:00:22][%cal Bg1f3,Bf3e1,Be1g2][%mdl 32] [#]} f6 $2 {[%emt 0:00:40]} ({Black should play} 30... Be6 $1 $19 {[%cal Re6b3] aiming for ...Bxb3.} 31. Re1 Ra8) 31. Ne1 {[%emt 0:00:27]} Bc6 {[%emt 0:02:32]} 32. Ng2 $1 {[%emt 0:01:05]} Qd4 {[%emt 0:01:52]} 33. Re1 {[%emt 0:00:32][%cal Rg2e3]} Qd5 {[%emt 0:01:03]} 34. Qf1 {[%emt 0:00:28]} Qd4 {[%emt 0:02:05]} 35. Qe2 {[%emt 0:00:29][%cal Rg2e3]} Bxg2 {[%emt 0:03:47]} 36. Kxg2 $11 {[%emt 0:00:12][%mdl 4096] Endgame KQR-KQR} Qc3 {[%emt 0:00:36]} 37. Kf3 {[%emt 0:00:51]} g5 {[%emt 0:00:51]} 38. fxg5 {[%emt 0:00:25]} fxg5 {[%emt 0:00:10]} 39. Kg2 {[%emt 0:00:06][%cal Oe2h5]} Qd2 {[%emt 0:01:05]} (39... Kh6 {is more complex.} 40. g4 h4 41. Rf1 Qe5) 40. Qxd2 {[%emt 0:00:53]} exd2 {[%emt 0:00:08] KR-KR} 41. Rd1 {[%emt 0:30:05]} Re2+ {[%emt 0:30:33]} 42. Kf3 {[%emt 0:00:29]} Rh2 {[%emt 0:00:20]} 43. h4 $1 {[%emt 0:00:35]} gxh4 {[%emt 0:01:49]} 44. gxh4 {[%emt 0:00:00] The position is equal.} Rxh4 {[%emt 0:00:00]} 45. Rxd2 {[%emt 0:00:00]} Rg4 {[%emt 0:00:00]} 46. Re2 {[%emt 0:00:00]} (46. Rh2 $5 {[%cal Rh2h5]} Rg5 47. Re2 $11) 46... Kf6 {[%emt 0:00:00]} 47. Re8 {[%emt 0:00:00]} Rg5 {[%emt 0:00:00]} 48. Re4 {[%emt 0:15:37]} Rd5 {[%emt 0:00:00]} 49. Rc4 {[%emt 0:00:00]} Kf5 {[%emt 0:00:00]} 50. Kg3 {[%emt 0:00:00]} Kg5 {[%emt 0:00:00]} 51. Kh3 {[%emt 0:00:00]} Re5 {[%emt 0:00:00]} 52. Kg3 {[%emt 0:00:00]} Kf5 {[%emt 0:00:00]} 53. Kf3 {[%emt 0:00:00]} Rd5 {[%emt 0:00:00]} 54. Kg3 {[%emt 0:00:00]} Ke5 {[%emt 0:00:00]} 55. Kf3 {[%emt 0:00:00]} Kd6 {[%emt 0:00:00] And now ...Rd4 would win.} 56. Rh4 {[%emt 0:00:00]} Rg5 {[%emt 0:01:01]} 57. Kf2 {[%emt 0:00:00]} Kd5 {[%emt 0:01:02]} 58. Kf3 {[%emt 0:00:00]} Ke5 {[%emt 0:00:53]} 59. Re4+ {[%emt 0:00:00]} Kf5 {[%emt 0:02:56]} 60. Rf4+ {[%emt 0:00:00]} Ke5 {[%emt 0:01:01] Hoping for ...Rf5.} 61. Re4+ {[%emt 0:00:00]} Kd5 {[%emt 0:00:39]} 62. Rh4 {[%emt 0:00:00] And White is the lucky defender.  Weighted Error Value: White=0.17 (very precise) /Black=0.22 (precise)} 1/2-1/2

[Event "44th Chess Olympiad Women 2022"]
[Site "Chennai"]
[Date "2022.08.03"]
[Round "6.34"]
[White "Munoz Santana, Doribel"]
[Black "Avila Fraire, Ameyalli"]
[Result "1/2-1/2"]
[ECO "D05"]
[WhiteElo "1851"]
[BlackElo "1907"]
[Annotator "TA"]
[PlyCount "78"]
[EventDate "2022.07.29"]
[EventType "team-tourn"]
[EventCountry "IND"]
[SourceTitle "playchess.com"]
[Source "ChessBase"]
[SourceQuality "1"]
[WhiteTeam "Dominican Republic"]
[BlackTeam "Mexico"]
[WhiteTeamCountry "DOM"]
[BlackTeamCountry "MEX"]
[TimeControl "40/5400+30:1800+30"]

{[%evp 14,78,0,0,0,0,0,0,4,0,0,0,0,-5,-4,0,-8,-17,-17,-46,-43,-43,-43,-43,-43,-43,-43,-45,-49,-43,-14,-14,-11,-12,0,-6,0,0,4,4,6,5,5,0,1,3,15,23,27,27,27,16,29,6,11,0,0,0,0,0,0,0,0,0,0,0,0]} 1. d4 {[%emt 0:00:02]} Nf6 {[%emt 0:00:12]} 2. Nf3 {[%emt 0:00:06]} d5 {[%emt 0:00:13]} 3. e3 {[%emt 0:00:12]} e6 {[%emt 0:01:28]} 4. Bd3 {[%emt 0:00:23]} c5 {[%emt 0:01:17]} 5. c3 {[%emt 0:00:35]} Nc6 {[%emt 0:00:38]} 6. O-O {[%emt 0:00:17]} b6 {[%emt 0:01:29]} 7. Nbd2 {[%emt 0:00:16]} Bb7 {[%emt 0:03:43]} 8. Re1 {[%emt 0:00:55]} Be7 {[%emt 0:02:28] D05: Colle System with ...e6.} 9. b3 {[%emt 0:16:50]} O-O {[%emt 0:02:38]} 10. Bb2 {[%emt 0:01:37]} Rc8 {[%emt 0:03:53]} 11. Rc1 {[%emt 0:01:10]} Bd6 {[%emt 0:13:52] [#]} 12. e4 $146 {[%emt 0:03:24]} ({Predecessor:} 12. dxc5 bxc5 13. e4 Qc7 14. g3 Rfd8 15. Qe2 Nd7 16. exd5 exd5 17. Bb1 Nce5 18. Nxe5 Nxe5 {1-0 (48) Caiazzo,D (1754)-Taurisano,V (1908) Napoli 2014}) 12... dxe4 {[%emt 0:03:35]} 13. Nxe4 {[%emt 0:03:56]} cxd4 {[%emt 0:07:05]} 14. Nxd6 {[%emt 0:03:43]} Qxd6 {[%emt 0:00:06]} 15. cxd4 {[%emt 0:00:37]} Nb4 {[%emt 0:14:52]} 16. Rxc8 {[%emt 0:03:22]} Rxc8 {[%emt 0:00:11]} 17. Bb1 {[%emt 0:00:36]} Nbd5 {[%emt 0:00:50]} 18. Qd2 {[%emt 0:03:36]} Qf4 {[%emt 0:03:23]} 19. Rc1 {[%emt 0:10:38]} Rxc1+ {[%emt 0:10:42]} 20. Bxc1 {[%emt 0:00:08]} Qxd2 {[%emt 0:06:30]} 21. Bxd2 {[%emt 0:00:07]} Ne8 {[%emt 0:06:01]} 22. Bd3 {[%emt 0:00:46]} Nd6 {[%emt 0:00:13]} 23. Ne1 {[%emt 0:08:46]} Nf5 {[%emt 0:05:16]} 24. Nc2 {[%emt 0:02:11]} Nh4 {[%emt 0:01:52][%cal Oh4g2]} 25. f3 {[%emt 0:00:24]} g6 {[%emt 0:05:17]} 26. Kf2 {[%emt 0:00:42]} Nf5 {[%emt 0:00:06]} 27. g4 {[%emt 0:01:41]} Nfe7 {[%emt 0:00:53]} 28. Be4 {[%emt 0:08:21]} Ba6 {[%emt 0:02:46]} 29. Nb4 {[%emt 0:02:20]} Nxb4 {[%emt 0:02:24]} 30. Bxb4 {[%emt 0:00:08]} Nd5 {[%emt 0:00:37]} 31. Bxd5 {[%emt 0:01:47]} exd5 $11 {[%emt 0:00:06][%mdl 4096] Endgame KB-KB} 32. g5 {[%emt 0:02:04]} Kg7 {[%emt 0:01:13]} 33. Bd6 {[%emt 0:00:34]} Bd3 {[%emt 0:00:24] The position is equal.} 34. Bb8 {[%emt 0:01:13]} a6 {[%emt 0:00:05]} 35. Be5+ {[%emt 0:02:03]} Kf8 {[%emt 0:00:44]} 36. Bf6 {[%emt 0:00:16]} Ke8 {[%emt 0:00:10]} 37. Ke3 {[%emt 0:00:42]} Bb1 {[%emt 0:00:05]} 38. a3 {[%emt 0:00:06]} Kd7 {[%emt 0:00:12]} 39. Kd2 {[%emt 0:01:20]} Bf5 {[%emt 0:00:46] Weighted Error Value: White=0.02 (flawless) /Black=0.03 (flawless)} 1/2-1/2

[Event "44th Chess Olympiad Women 2022"]
[Site "Chennai"]
[Date "2022.08.03"]
[Round "6.39"]
[White "Mihailova, Alina"]
[Black "Mariam, Essa"]
[Result "1-0"]
[ECO "A64"]
[WhiteElo "1926"]
[BlackElo "1591"]
[Annotator "TA"]
[PlyCount "111"]
[EventDate "2022.07.29"]
[EventType "team-tourn"]
[EventCountry "IND"]
[SourceTitle "playchess.com"]
[Source "ChessBase"]
[SourceQuality "1"]
[WhiteTeam "Moldova"]
[BlackTeam "United Arab Emirates"]
[WhiteTeamCountry "MDA"]
[BlackTeamCountry "UAE"]
[TimeControl "40/5400+30:1800+30"]

{[%evp 26,111,2,-21,-16,-37,-29,-25,33,27,9,27,35,6,17,0,6,7,14,-20,-25,-58,-18,-56,-57,-79,-27,-87,-41,-27,-26,-122,-113,-88,-78,-67,-68,-70,-68,-134,-65,-60,-66,-59,-47,-204,-218,-195,-197,-250,-208,-550,-533,-530,-135,-519,-506,-464,-472,-457,-40,-32,-22,-13,0,-8,0,-24,0,0,0,0,183,187,170,173,261,245,258,256,2752,2744,2425,406,470,470,29986,29987]} 1. d4 {[%emt 0:00:03]} Nf6 {[%emt 0:00:04]} 2. c4 {[%emt 0:00:09]} c5 {[%emt 0:00:04]} 3. d5 {[%emt 0:00:17]} e6 {[%emt 0:00:06]} 4. Nc3 {[%emt 0:00:17]} exd5 {[%emt 0:00:04]} 5. cxd5 {[%emt 0:00:05]} d6 {[%emt 0:00:06]} 6. g3 {[%emt 0:00:42]} g6 {[%emt 0:00:04]} 7. Bg2 {[%emt 0:00:05]} Bg7 {[%emt 0:00:04]} 8. Nf3 {[%emt 0:00:08]} O-O {[%emt 0:00:27]} 9. O-O {[%emt 0:00:06]} a6 {[%emt 0:00:33]} 10. a4 {[%emt 0:00:10]} Re8 {[%emt 0:00:05]} 11. Nd2 {[%emt 0:03:13]} Nbd7 {[%emt 0:01:46]} 12. Nc4 {[%emt 0:01:35]} Ne5 {[%emt 0:00:39]} 13. Nxe5 {[%emt 0:06:19]} Rxe5 {[%emt 0:00:04]} 14. e4 {[%emt 0:08:25] has lost popularity (14.Bf4).} Re8 {[%emt 0:07:32] A64: Modern Benoni: Fianchetto Variation: 9...Nbd7 10 Nd2 a6 11 a4 Re8.} 15. h3 {[%emt 0:06:58]} Rb8 {[%emt 0:01:57]} 16. Qd3 {[%emt 0:03:43] Inhibits b5.} b5 {[%emt 0:14:36]} (16... Nd7 $11) 17. axb5 $14 {[%emt 0:13:04]} axb5 {[%emt 0:00:13]} 18. Nxb5 {[%emt 0:02:20]} Qb6 {[%emt 0:01:34] And now ...Ba6 would win.} 19. Nc3 {[%emt 0:01:19]} Nd7 {[%emt 0:00:44] [#]} 20. Kh2 $146 {[%emt 0:22:15]} ({Predecessor:} 20. Qe2 Bd4 21. Rd1 Ne5 22. Be3 Bxe3 23. Qxe3 Bd7 24. Rab1 Qb3 25. Qe2 {0-1 (63) Trimitzios,P (2086)-Fidrilakis,S (1919) Porto Rio 2016}) 20... Ne5 {[%emt 0:01:36]} 21. Qe2 {[%emt 0:00:44]} c4 {[%emt 0:02:10]} 22. Na4 {[%emt 0:01:50]} Qc7 {[%emt 0:07:51][%mdl 1024] Black has compensation.} 23. Qc2 {[%emt 0:04:01]} Nd3 {[%emt 0:03:43]} (23... Bd7 $5 {[%cal Re5d3]}) 24. Ra3 {[%emt 0:04:06]} Bd7 {[%emt 0:03:38]} 25. Nc3 {[%emt 0:06:15]} Rec8 {[%emt 0:02:34]} ({Black should play} 25... f5 $17) 26. f4 {[%emt 0:05:38]} (26. Nd1 $1 $11) 26... Qb6 {[%emt 0:02:21]} (26... f5 $17) 27. Nd1 $1 $15 {[%emt 0:06:18]} Bd4 {[%emt 0:10:15]} 28. g4 {[%emt 0:02:54]} (28. Bd2 $11) 28... Qc5 $17 {[%emt 0:12:59]} 29. Ra1 {[%emt 0:01:22]} Ra8 $36 {[%emt 0:01:56][%mdl 2048] Black is in control.} 30. Rxa8 {[%emt 0:00:12]} Rxa8 {[%emt 0:00:05]} 31. Nc3 {[%emt 0:00:51][%cal Oe4e5]} Rb8 {[%emt 0:05:08]} 32. Rd1 {[%emt 0:00:18]} (32. e5 $15 Qb4 33. Ne4) 32... Nxc1 {[%emt 0:05:39]} (32... Rb4 $17 33. g5 Qb6 34. Rxd3 cxd3 35. Qxd3 Qc5) 33. Rxc1 $15 {[%emt 0:00:33]} Be3 {[%emt 0:00:08][%cal Bd4e3,Be3f4,Bf4e5][%mdl 32] This bishop pair is nice.} 34. Rf1 {[%emt 0:00:25]} Qd4 {[%emt 0:01:19][%cal Oe3f4]} 35. Nd1 $2 {[%emt 0:00:34] [#]} ({Better is} 35. f5 $15) 35... Bxf4+ $1 $19 {[%emt 0:02:06][%mdl 512]} 36. Kh1 {[%emt 0:00:17]} Be5 {[%emt 0:00:23]} 37. Rf3 {[%emt 0:00:50]} (37. Qf2 {was called for.} f6 38. Nc3) 37... Ra8 {[%emt 0:03:41]} 38. Nc3 {[%emt 0:00:33] Prevents Ba4.} (38. Qe2 {is tougher.}) 38... Ra1+ {[%emt 0:00:49]} 39. Rf1 {[%emt 0:00:12] [#]} Rxf1+ {[%emt 0:00:54]} 40. Bxf1 {[%emt 0:00:02]} Qe3 {[%emt 0:04:24]} 41. Qe2 {[%emt 0:30:18]} Qc1 {[%emt 0:32:39]} 42. Kg2 {[%emt 0:00:45]} Bxc3 $2 {[%emt 0:03:10]} ({Don't blunder} 42... Qf4 $2 43. Qf2 Qg5 44. Bxc4 $19) (42... h5 $19 {aiming for ...hxg4.} 43. Kf2 Bd4+ 44. Kg2 hxg4 45. hxg4 Qg5) 43. bxc3 {[%emt 0:00:02][%mdl 4096] Endgame KQB-KQB} Bb5 {[%emt 0:00:11]} 44. Qf3 {[%emt 0:00:19]} Kg7 {[%emt 0:00:00]} 45. h4 {[%emt 0:00:00]} Qd2+ {[%emt 0:00:00]} 46. Kg1 {[%emt 0:00:00]} Ba4 {[%emt 0:00:00]} 47. g5 {[%emt 0:00:00]} Bd1 {[%emt 0:00:00]} 48. Qg3 {[%emt 0:00:00]} Be2 $2 {[%emt 0:00:00]} (48... Bc2 $11) 49. Qf2 $18 {[%emt 0:00:00]} ({Not} 49. Qxd6 Qe3+ 50. Kh2 Qf2+ 51. Bg2 Qxh4+ 52. Bh3 Qxg5 $17) 49... Qxc3 {[%emt 0:00:00] Strongly threatening ...Bd3.} 50. Bxe2 {[%emt 0:00:00]} Qc1+ {[%emt 0:00:00]} (50... Kg8 $142 51. Kg2 Qc2) 51. Kg2 {[%emt 0:00:00][%cal Oe4e5] Black must now prevent e5!} c3 {[%emt 0:00:00] [#]} 52. Bd3 $1 {[%emt 0:00:00]} ({Worse is} 52. Qf6+ Kg8 $11) 52... Qb2 $2 {[%emt 0:00:00]} (52... Qd1 53. Qf6+ Kg8 54. Qxc3 Qg4+ 55. Kf1 Qxh4) 53. Qxb2 {[%emt 0:00:00]} cxb2 {[%emt 0:00:00]} 54. e5 {[%emt 0:00:25]} (54. Kf2 $142 {[%cal Oe4e5] White threatens e5! and mate.} f6 55. Kf3) 54... dxe5 {[%emt 0:00:00]} 55. d6 {[%emt 0:00:13] Intending d7 and mate.} Kf8 {[%emt 0:00:00]} (55... e4 $18 56. Bxe4 f5) 56. Kf3 {[%emt 0:00:12] What a bad dream for Black.  Weighted Error Value: White=0.48/Black=0.51} 1-0